{"text_format":"1","workbook":"xlsx","n_sheets":2,"sheets":["Encuesta","Valores "],"not_rendered":{"charts":1,"images":2,"macros":1,"external_links":0,"defined_names":2,"comments":0,"pivot_tables":0},"unopened":[],"bounds":{"document_bytes":16777216,"sheet_cells":100000,"rows_first":2000,"rows_last":500,"rows_between":2000,"halvings":0,"cell_chars":16384,"cell_head_chars":4096},"cells_cut":0,"cells_raw":0,"read":"whole","date_system":"1900"}

{"sheet":"Encuesta","index":0,"n_rows":62,"n_cols":11,"rows_kept":62,"cut":false,"hidden":false,"merged":[[54,8,54,9],[48,0,49,1],[48,2,49,6],[50,0,50,9],[51,8,51,9],[51,0,51,3],[51,4,51,7],[52,0,52,3],[53,0,53,3],[52,4,52,7],[53,4,53,7],[48,7,49,9],[52,8,52,9],[53,8,53,9],[60,2,60,7],[59,2,59,7],[61,3,61,6],[54,4,54,7],[54,0,54,3],[0,0,2,9],[4,0,4,9],[6,0,12,9],[39,4,40,9],[42,4,43,9],[32,0,32,8],[33,0,33,8],[16,0,16,8],[28,0,28,8],[29,0,29,8],[30,0,30,8],[31,0,31,8],[14,3,14,9],[17,0,17,8],[18,0,18,8],[19,0,19,8],[14,0,14,2],[47,0,47,1],[34,0,34,8],[35,0,35,8],[36,0,36,8],[47,2,47,6],[47,7,47,9],[20,0,20,8],[21,0,21,8],[22,0,22,8],[23,0,23,8],[24,0,24,8],[25,0,25,8],[26,0,26,8],[27,0,27,8]]}
["Dirección General de Planeación\nDirección de Gestión de la Calidad"]
[]
[]
[]
["Clasificación del Nivel de Operatividad Institucional"]
[]
["Instrucciones:\nMarque las casillas según corresponda de acuerdo con las características con las que cuenta la operatividad que se está analizando, una vez realizado el llenado de casillas, el formato arrojará una ponderación que determinará el resultado propuesto para documentar dicha operatividad con la herramienta adecuada: \"Proceso\" o \"Procedimiento\"."]
[]
[]
[]
[]
[]
[null,null,null,null,null,null,null,null,null,null," "]
[]
["NOMBRE DE LA UNIDAD ACADÉMICA O DEPENDENCIA UNIVERSITARIA\n(Dueño de la operatividad)"]
[]
["Criterios",null,null,null,null,null,null,null,null,"Aplica"]
["Su origen y razón de ser está directamente relacionado con atribuciones de la legislación universitaria (Ley Orgánica, Estatuto General, Reglamentos, entre otros).",null,null,null,null,null,null,null,null,false]
["Su desarrollo se debe a la creación o modificación de un centro de costos. ",null,null,null,null,null,null,null,null,false]
["Una vez que esté operando, no es un elemento que funcione como herramienta principal para someterse a certificación ISO. ",null,null,null,null,null,null,null,null,false]
["El resultado obtenido de su operación permite cumplir o impactar a indicadores tácticos establecidos en el Plan de Desarrollo Institucional (PDI). ",null,null,null,null,null,null,null,null,false]
["Su operación contribuye con el cumplimiento de normatividad externa aplicable (internacional, federal, estatal). ",null,null,null,null,null,null,null,null,false]
["Su operación requiere sólo la colaboración de la estructura organizacional interna del dueño de la operatividad que se está analizando. ",null,null,null,null,null,null,null,null,false]
["El dueño de la operatividad en cuestión, es alguna Coordinación, Dirección General o afín con ese nivel de autoridad",null,null,null,null,null,null,null,null,false]
["Su operación tiene impacto mayormente en el funcionamiento interno del dueño de la operatividad que se está analizando. ",null,null,null,null,null,null,null,null,false]
["Se caracteriza por tener más de 15 actividades desarrolladas por diferentes partes interesadas.",null,null,null,null,null,null,null,null,false]
["Una vez que esté operando, es un elemento que funciona como herramienta principal para someterse a certificación ISO. ",null,null,null,null,null,null,null,null,false]
["Su operación es requerida para complementar la operatividad de un nivel superior.",null,null,null,null,null,null,null,null,false]
["Su operación requiere la colaboración de máximo dos partes interesadas (sin contar a la dueña de la operatividad).",null,null,null,null,null,null,null,null,false]
["Su operación impacta a un indicador estratégico establecido en el Plan de Desarrollo Institucional (PDI). ",null,null,null,null,null,null,null,null,false]
["Su operación se origina directamente de una o varias funciones establecidas en el Manual de Organización. ",null,null,null,null,null,null,null,null,false]
["Su operación requiere la colaboración de más de tres partes interesadas (sin contar al dueño de la operatividad). ",null,null,null,null,null,null,null,null,false]
["La forma en que se documenta implica una descripción exhaustiva de cada paso y no requiere diagramarse. ",null,null,null,null,null,null,null,null,false]
["Su resultado está directamente alineado al cumplimiento de metas, objetivos, entre otros, de acuerdo con lo planificado en el Plan de Desarrollo Institucional (PDI). ",null,null,null,null,null,null,null,null,false]
["Su operación conforma una serie de actividades cotidianas y apoyo (atención a usuarios, capacitaciones, recepción, seguimiento de correspondencia, entre otros). ",null,null,null,null,null,null,null,null,false]
["Su operación puede replicarse a otra área de la UAEH de manera que pueda estandarizarse para la ejecución de tareas cotidianas. ",null,null,null,null,null,null,null,null,false]
["El impacto de su operación está directamente relacionado con la Misión y Visión de la UAEH. ",null,null,null,null,null,null,null,null,false]
[]
[]
[null,null,null,null,{"$f":"IF('Valores '!F6>'Valores '!F7,\"Se recomienda documentar un PROCESO\",\"-\")","v":"-"}]
[]
[]
[null,null,null,null,{"$f":"IF('Valores '!F7>'Valores '!F6,\"Se recomienda documentar un PROCEDIMIENTO\",\"-\")","v":"-"}]
[]
[]
[]
[]
["FECHA",null,"NOMBRE PROPUESTO",null,null,null,null,"OPERATIVIDAD DEFINIDA"]
[null,null,null,null,null,null,null,"(colocar si es PROCESO o PROCEDIMIENTO)"]
[]
["REVISORES (AS)"]
["NOMBRE",null,null,null,"DIRECCIÓN / DEPARTAMENTO / ÁREA",null,null,null,"FIRMA"]
[]
[]
[]
[]
[]
[]
[]
[null,null,"(Colocar nombre del responsable de área)"]
[null,null,"Dirección de Gestión de la Calidad"]
[null,null,null,"Validación"]

{"sheet":"Valores ","index":1,"n_rows":23,"n_cols":6,"rows_kept":23,"cut":false,"hidden":true,"merged":[]}
[]
[null,"Valores "]
[]
[null,{"$f":"IF(Encuesta!J18+Encuesta!J18,15,0)","v":0}]
[null,{"$f":"IF(Encuesta!J19,5,0)","v":0}]
[null,{"$f":"IF(Encuesta!J20,5,0)","v":0},null,null,"Proceso",{"$f":"'Valores '!B4+'Valores '!B7+'Valores '!B8+'Valores '!B10+'Valores '!B12+'Valores '!B13+'Valores '!B16+'Valores '!B18+'Valores '!B20+'Valores '!B23","v":0}]
[null,{"$f":"IF(Encuesta!J21,5,0)","v":0},null,null,"Procedimiento",{"$f":"'Valores '!B5+'Valores '!B6+'Valores '!B9+'Valores '!B11+'Valores '!B14+'Valores '!B15+'Valores '!B17+'Valores '!B19+'Valores '!B21+'Valores '!B22","v":0}]
[null,{"$f":"IF(Encuesta!J22,10,0)","v":0}]
[null,{"$f":"IF(Encuesta!J23,15,0)","v":0}]
[null,{"$f":"IF(Encuesta!J24,5,0)","v":0}]
[null,{"$f":"IF(Encuesta!J25,10,0)","v":0}]
[null,{"$f":"IF(Encuesta!J26,5,0)","v":0}]
[null,{"$f":"IF(Encuesta!J27,5,0)","v":0}]
[null,{"$f":"IF(Encuesta!J28,15,0)","v":0}]
[null,{"$f":"IF(Encuesta!J29,15,0)","v":0}]
[null,{"$f":"IF(Encuesta!J30,15,0)","v":0}]
[null,{"$f":"IF(Encuesta!J31,15,0)","v":0}]
[null,{"$f":"IF(Encuesta!J32,15,0)","v":0}]
[null,{"$f":"IF(Encuesta!J33,10,0)","v":0}]
[null,{"$f":"IF(Encuesta!J34,15,0)","v":0}]
[null,{"$f":"IF(Encuesta!J35,5,0)","v":0}]
[null,{"$f":"IF(Encuesta!J36,5,0)","v":0}]
[null,{"$f":"IF(Encuesta!J37,10,0)","v":0}]